[Event "Silves Open 2025"]
[Site "Fissul"]
[Date "2025.03.03"]
[Round "3.35"]
[White "Botelho, Adelino"]
[Black "Ruiz Esteban, Ruben"]
[Result "0-1"]
[Annotator "NA COMBH"]
[ECO "D03"]
[WhiteElo "1550"]
[BlackElo "1655"]
[PlyCount "68"]
[EventDate "2025.03.03"]
[EventType "swiss"]
[EventCountry "POR"]
[SourceTitle "playchess.com"]
[Source "ChessBase"]
[SourceQuality "1"]
[TimeControl "5400+30"]

1. d4 {[%emt 1:31:00]} d5 {[%emt 1:31:00]} 2. Nf3 {[%emt 0:00:30]} Nf6 {[%emt 0:00:30]} 3. Bg5 {[%emt 0:00:30]} Ne4 {[%emt 0:00:30]} 4. Bf4 {[%emt 0:00:30]} c5 {[%emt 0:00:30]} 5. dxc5 {[%emt 0:00:30]} Nc6 {[%emt 0:00:30]} 6. c3 {[%emt 0:00:30]} a5 {[%emt 0:00:30]} 7. e3 {[%emt 0:00:30]} Bg4 {[%emt 0:00:30]} 8. h3 {[%emt 0:00:30]} Bh5 {[%emt 0:00:30]} 9. Be2 {[%emt 0:00:30]} e6 {[%emt 0:00:30]} 10. Nbd2 {[%emt 0:00:30]} Nxd2 {[%emt 0:00:30]} 11. Qxd2 {[%emt 0:00:30]} Bxc5 {[%emt 0:00:30]} 12. g4 {[%emt 0:00:30]} Bg6 {[%emt 0:00:30]} 13. Bg5 {[%emt 0:00:30]} Be7 {[%emt 0:00:30]} 14. Bf4 {[%emt 0:00:30]} Bd6 {[%emt 0:00:30]} 15. Bg5 {[%emt 0:00:30]} Qc7 {[%emt 0:00:30]} 16. Nd4 {[%emt 0:00:30]} Nxd4 {[%emt 0:00:30]} 17. exd4 {[%emt 0:00:30]} h6 {[%emt 0:00:30]} 18. Bb5+ {[%emt 0:00:30]} Kf8 {[%emt 0:00:30]} 19. Be3 {[%emt 0:00:30]} Be4 {[%emt 0:00:30]} 20. f3 {[%emt 0:00:30]} Bg3+ {[%emt 0:00:30]} 21. Ke2 {[%emt 0:00:30]} Bh7 {[%emt 0:00:30]} 22. h4 {[%emt 0:00:30]} Bd6 {[%emt 0:00:30]} 23. h5 {[%emt 0:00:30]} a4 {[%emt 0:00:30]} 24. b3 {[%emt 0:00:30]} axb3 {[%emt 0:00:30]} 25. axb3 {[%emt 0:00:30]} Ke7 {[%emt 0:00:30]} 26. g5 {[%emt 0:00:30]} hxg5 {[%emt 0:00:30]} 27. Bxg5+ {[%emt 0:00:30]} f6 {[%emt 0:00:30]} 28. Be3 {[%emt 0:00:30]} Ra5 {[%emt 0:00:30]} 29. c4 {[%emt 0:00:30]} Rha8 {[%emt 0:00:30]} 30. Ra4 {[%emt 0:00:30]} Rxa4 {[%emt 0:00:30]} 31. bxa4 {[%emt 0:00:30]} dxc4 {[%emt 0:00:30]} 32. Qc3 {[%emt 0:00:30]} Bd3+ {[%emt 0:00:30]} 33. Kd2 {[%emt 0:00:30]} Qa5 {[%emt 0:00:30]} 34. Qxa5 {[%emt 0:00:30]} Rxa5 {[%emt 0:00:30]} 0-1

[Event "Silves Open 2025"]
[Site "Fissul"]
[Date "2025.03.03"]
[Round "3.38"]
[White "Goncalves, Nuno Filipe Pocinho"]
[Black "Goncalves, Beatriz M A C Nunes"]
[Result "0-1"]
[Annotator "NA COMBH"]
[ECO "B20"]
[WhiteElo "1731"]
[BlackElo "1458"]
[PlyCount "142"]
[EventDate "2025.03.03"]
[EventType "swiss"]
[EventCountry "POR"]
[SourceTitle "playchess.com"]
[Source "ChessBase"]
[SourceQuality "1"]
[TimeControl "5400+30"]

1. e4 {[%emt 0:04:45]} c5 {[%emt 0:00:36]} 2. a3 {[%emt 0:00:39]} Nc6 {[%emt 0:01:11]} 3. b4 {[%emt 0:00:37]} cxb4 {[%emt 0:02:12]} 4. axb4 {[%emt 0:00:13]} Nxb4 {[%emt 0:01:06]} 5. d4 {[%emt 0:00:18]} d5 {[%emt 0:07:11]} 6. c3 {[%emt 0:00:41]} Nc6 {[%emt 0:01:06]} 7. Nd2 {[%emt 0:00:45]} e5 {[%emt 0:04:59]} 8. exd5 {[%emt 0:01:55]} Qxd5 {[%emt 0:00:13]} 9. Bc4 {[%emt 0:00:28]} Qxg2 {[%emt 0:01:53]} 10. Qf3 {[%emt 0:00:52]} Qxf3 {[%emt 0:00:59]} 11. Ngxf3 {[%emt 0:00:07]} exd4 {[%emt 0:01:31]} 12. cxd4 {[%emt 0:00:29]} h6 {[%emt 0:01:58]} 13. O-O {[%emt 0:00:24]} Bb4 {[%emt 0:09:22]} 14. Bb5 {[%emt 0:05:28]} Bd7 {[%emt 0:02:01]} 15. Ba3 {[%emt 0:02:23]} Bxa3 {[%emt 0:07:57]} 16. Rxa3 {[%emt 0:00:25]} O-O-O {[%emt 0:05:25]} 17. Rc1 {[%emt 0:01:06]} Kb8 {[%emt 0:00:26]} 18. Bxc6 {[%emt 0:01:39]} Bxc6 {[%emt 0:00:10]} 19. Rb3 {[%emt 0:01:34]} Bxf3 {[%emt 0:01:56]} 20. Nxf3 {[%emt 0:00:29]} f6 {[%emt 0:01:48]} 21. Rbc3 {[%emt 0:00:21]} Ne7 {[%emt 0:00:57]} 22. Kg2 {[%emt 0:01:13]} Rc8 {[%emt 0:00:12]} 23. Nd2 {[%emt 0:01:50]} Rxc3 {[%emt 0:00:19]} 24. Rxc3 {[%emt 0:00:03]} Rc8 {[%emt 0:00:20]} 25. Rg3 {[%emt 0:00:20]} Nf5 {[%emt 0:00:19]} 26. Rd3 {[%emt 0:00:38]} g5 {[%emt 0:00:29]} 27. Ne4 {[%emt 0:00:24]} Rd8 {[%emt 0:01:16]} 28. d5 {[%emt 0:00:22]} Nh4+ {[%emt 0:00:28]} 29. Kg3 {[%emt 0:01:27]} f5 {[%emt 0:00:51]} 30. Nf6 {[%emt 0:00:20]} Ng6 {[%emt 0:01:38]} 31. d6 {[%emt 0:00:41]} Ne5 {[%emt 0:01:15]} 32. Rd5 {[%emt 0:03:35]} f4+ {[%emt 0:00:48]} 33. Kg2 {[%emt 0:00:47]} Nd7 {[%emt 0:01:40]} 34. Nxd7+ {[%emt 0:00:48]} Rxd7 {[%emt 0:00:09]} 35. Kf3 {[%emt 0:00:02]} b6 {[%emt 0:00:11]} 36. Ke4 {[%emt 0:00:12]} Kb7 {[%emt 0:00:10]} 37. Ke5 {[%emt 0:00:08]} Kc6 {[%emt 0:00:12]} 38. Ke6 {[%emt 0:00:38]} a5 {[%emt 0:01:03]} 39. Rd1 {[%emt 0:00:14]} Ra7 {[%emt 0:04:17]} 40. d7 {[%emt 0:00:32]} Rxd7 {[%emt 0:00:59]} 41. Rxd7 {[%emt 0:00:03]} a4 {[%emt 0:00:11]} 42. Rd1 {[%emt 0:00:27]} b5 {[%emt 0:00:07]} 43. Rd6+ {[%emt 0:00:34]} Kc5 {[%emt 0:00:04]} 44. Ra6 {[%emt 0:00:53]} Kb4 {[%emt 0:00:09]} 45. Kd5 {[%emt 0:01:13]} a3 {[%emt 0:01:35]} 46. Rxh6 {[%emt 0:01:24]} Kb3 {[%emt 0:00:59]} 47. Kc5 {[%emt 0:00:48]} a2 {[%emt 0:00:21]} 48. Ra6 {[%emt 0:00:21]} Kb2 {[%emt 0:00:07]} 49. Kxb5 {[%emt 0:00:15]} a1=Q {[%emt 0:00:07]} 50. Rxa1 {[%emt 0:00:03]} Kxa1 {[%emt 0:00:05]} 51. Kc4 {[%emt 0:00:09]} Kb2 {[%emt 0:00:11]} 52. Kd3 {[%emt 0:00:12]} Kc1 {[%emt 0:00:16]} 53. f3 {[%emt 0:00:11]} Kd1 {[%emt 0:00:08]} 54. Ke4 {[%emt 0:00:12]} Ke2 {[%emt 0:00:07]} 55. h4 {[%emt 0:00:28]} g4 {[%emt 0:00:54]} 56. fxg4 {[%emt 0:01:11]} f3 {[%emt 0:00:10]} 57. Kf5 {[%emt 0:00:22]} f2 {[%emt 0:00:06]} 58. Kg5 {[%emt 0:00:24]} f1=Q {[%emt 0:00:03]} 59. Kh5 {[%emt 0:00:12]} Qf7+ {[%emt 0:01:02]} 60. Kh6 {[%emt 0:03:33]} Qf6+ {[%emt 0:00:30]} 61. Kh5 {[%emt 0:00:22]} Kf3 {[%emt 0:00:53]} 62. g5 {[%emt 0:00:03]} Qh8+ {[%emt 0:00:07]} 63. Kg6 {[%emt 0:00:20]} Qxh4 {[%emt 0:00:06]} 64. Kf6 {[%emt 0:00:31]} Kf4 {[%emt 0:00:16]} 65. Kg7 {[%emt 0:00:36]} Qxg5+ {[%emt 0:00:05]} 66. Kf7 {[%emt 1:08:51]} Qe5 {[%emt 0:43:18]} 67. Kg8 {[%emt 0:00:30]} Qf6 {[%emt 0:00:00]} 68. Kh7 {[%emt 0:00:00]} Qg5 {[%emt 0:00:00]} 69. Kh8 {[%emt 0:00:00]} Kf5 {[%emt 0:00:00]} 70. Kh7 {[%emt 0:00:00]} Kf6 {[%emt 0:00:00]} 71. Kh8 {[%emt 0:00:00]} Qg7# {[%emt 0:00:00]} 0-1

[Event "Silves Open 2025"]
[Site "Fissul"]
[Date "2025.03.03"]
[Round "3.39"]
[White "De Oliveira, Victor Gabriel C."]
[Black "Tacuchian, Marcelo Oliveira"]
[Result "0-1"]
[Annotator "TA"]
[ECO "B34"]
[WhiteElo "2176"]
[BlackElo "1620"]
[PlyCount "80"]
[EventDate "2025.03.03"]
[EventType "swiss"]
[EventCountry "POR"]
[SourceTitle "playchess.com"]
[Source "ChessBase"]
[SourceQuality "1"]
[TimeControl "5400+30"]

{[%evp 9,80,4,10,-25,-8,-8,0,-24,0,8,51,14,8,17,6,0,38,22,15,22,146,0,6,6,20,-20,0,-8,0,-8,-14,-34,0,-43,-60,-56,-55,-94,-40,-62,-69,-87,-89,-108,-89,-155,-166,-237,-229,-327,-345,-843,-836,-1319,-1483,-1459,-1447,-1508,-1419,-2053,-1702,-6103,-6095,-5577,-5477,-29993,-29994,-29996,-29997,-29997,-29998,-29998,-29999]} 1. e4 {[%emt 0:00:30]} c5 {[%emt 0:00:07]} 2. Nf3 {[%emt 0:00:00]} Nc6 {[%emt 0:00:08]} 3. d4 {[%emt 0:00:00]} cxd4 {[%emt 0:00:07]} 4. Nxd4 {[%emt 0:00:11]} g6 {[%emt 0:00:03]} 5. Nxc6 {[%emt 0:00:16]} bxc6 {[%emt 0:00:07]} 6. g3 {[%emt 0:00:24] B34: Sicilian: Accelerated Dragon with 5 Nc3: sidelines.} Bg7 {[%emt 0:00:07]} 7. Bg2 {[%emt 0:00:10]} Qb6 {[%emt 0:01:53]} 8. O-O $146 {[%emt 0:00:29] The position is equal.} (8. a4 Bxb2 9. Bxb2 Qxb2 10. Ra3 Qb4+ 11. Kf1 Ba6+ 12. Kg1 Nf6 13. e5 Ne4 14. Qc1 O-O 15. Re3 Rab8 16. Rb3 Qd4 17. Rd3 Qxf2# {0-1 Morini,S-Correa,B (1492) Catanduva op 2020 (3)}) 8... Ba6 {[%emt 0:01:04]} 9. Re1 {[%emt 0:00:25]} Bd4 {[%emt 0:02:09]} 10. Qf3 {[%emt 0:01:06]} Bxb2 {[%emt 0:02:44]} 11. Bxb2 {[%emt 0:00:19] White sacrificed a pawn} Qxb2 {[%emt 0:00:08]} 12. Na3 {[%emt 0:00:32]} e6 {[%emt 0:02:26]} 13. Qb3 {[%emt 0:01:42]} Qxb3 {[%emt 0:00:26]} 14. axb3 {[%emt 0:00:17]} d5 {[%emt 0:01:15]} 15. e5 {[%emt 0:00:16]} (15. exd5 $16 cxd5 16. Bxd5) 15... Ne7 {[%emt 0:00:35]} 16. Nb1 {[%emt 0:00:24]} Bb7 {[%emt 0:00:28]} 17. Ra4 {[%emt 0:00:23]} c5 {[%emt 0:00:18]} 18. c4 {[%emt 0:00:28]} O-O {[%emt 0:01:55]} 19. cxd5 {[%emt 0:00:42]} Bxd5 {[%emt 0:00:57]} 20. Bxd5 {[%emt 0:00:21]} exd5 {[%emt 0:00:26]} 21. e6 {[%emt 0:00:20]} f5 {[%emt 0:01:47]} 22. Ra5 {[%emt 0:00:32]} Rfc8 {[%emt 0:02:23]} 23. Nd2 {[%emt 0:00:51]} Rc6 {[%emt 0:00:28]} (23... Rc7 $17 24. Nb1 d4) 24. Nf3 {[%emt 0:00:25]} Kg7 {[%emt 0:01:53]} 25. h4 {[%emt 0:02:25] Black continues to play with concentration.} a6 {[%emt 0:03:18]} 26. Kg2 {[%emt 0:00:39]} Rb8 {[%emt 0:00:58]} 27. Re3 {[%emt 0:00:30]} ({White should play} 27. Ne5 Rxe6 28. Rxc5) 27... Rb5 $17 {[%emt 0:00:26]} 28. Rxb5 {[%emt 0:00:48]} (28. Ra3 {was worth a try.}) 28... axb5 $19 {[%emt 0:00:02][%mdl 4096] Endgame KRN-KRN. Black is a pawn up.} 29. Ng5 {[%emt 0:00:36]} (29. Kf1 $142) 29... d4 {[%emt 0:00:39]} 30. Re5 {[%emt 0:00:35]} (30. Rd3) 30... d3 {[%emt 0:00:58] [#]} 31. Kf3 {[%emt 0:00:21]} Rd6 {[%emt 0:02:47]} 32. Re1 {[%emt 0:00:44]} c4 {[%emt 0:00:32]} 33. bxc4 {[%emt 0:00:22]} bxc4 {[%emt 0:00:13] And now ...c3 would win.} 34. Nf7 {[%emt 0:00:23]} Rd5 {[%emt 0:00:42]} 35. Rd1 {[%emt 0:01:35]} c3 {[%emt 0:00:38] [#] ( -> ...c2)} 36. Ke3 {[%emt 0:01:27]} c2 {[%emt 0:00:32]} 37. Rc1 {[%emt 0:00:20]} d2 {[%emt 0:00:20] Black mates.} 38. Rxc2 {[%emt 0:00:41]} d1=Q {[%emt 0:00:04]} 39. Rc7 {[%emt 0:04:02]} Qd3+ {[%emt 0:00:28]} 40. Kf4 {[%emt 0:00:10]} Qe4+ {[%emt 0:00:38] Weighted Error Value: White=0.97/Black=0.14 (very precise)   Mistake:       	White=5     	Black=2      Inaccurate:     	White=5     	Black=4      OK:         	White=4     	Black=9} 0-1

[Event "Silves Open 2025"]
[Site "Fissul"]
[Date "2025.03.03"]
[Round "4.2"]
[White "Martins, Bruno Andre Leite"]
[Black "Alshameary Puente, Ismael"]
[Result "0-1"]
[Annotator "TA"]
[ECO "B41"]
[WhiteElo "2360"]
[BlackElo "2343"]
[PlyCount "286"]
[EventDate "2025.03.03"]
[EventType "swiss"]
[EventCountry "POR"]
[SourceTitle "playchess.com"]
[Source "ChessBase"]
[SourceQuality "1"]
[TimeControl "5400+30"]

{[%evp 14,286,56,22,43,50,47,33,67,56,64,63,62,43,65,56,113,113,121,89,84,84,83,81,86,71,97,29,30,29,87,79,104,105,104,79,78,78,110,110,110,110,116,111,122,116,123,117,168,108,110,80,93,72,77,0,80,79,82,64,74,75,68,0,0,0,67,67,67,58,67,67,67,67,68,51,66,38,38,38,38,38,38,39,47,47,78,29,29,29,29,29,29,0,29,29,29,29,29,11,37,0,37,0,70,70,82,29,37,37,37,0,0,0,37,7,7,0,0,0,7,29,21,0,37,15,37,0,37,37,37,37,37,37,37,37,37,29,37,37,37,37,37,37,37,37,37,37,37,37,37,0,0,0,18,0,37,37,37,37,37,37,37,11,11,0,0,0,37,25,21,0,37,0,23,29,44,44,44,37,37,0,0,0,0,0,0,0,0,-8,0,0,0,-8,-8,-8,0,0,0,-55,0,0,0,0,0,0,0,0,0,-85,0,-128,-137,-241,-232,-198,-65,-65,-64,-279,-269,-438,-438,-434,-437,-447,-441,-439,-443,-453,-429,-662,-563,-629,-622,-563,-529,-558,-557,-5097,-4851,-29973,-29974,-29974,-29975,-29975,-29976,-29976,-29977,-29977,-29978,-29978,-29976,-29975,-29977,-29979,-29980,-29981,-29982,-29982,-29983,-29983,-29983,-29985,-29986,-29986,-29987,-29987,-29988,-29990,-29991,-29991,-29990,-29990,-8]} 1. e4 {[%emt 0:00:11]} c5 {[%emt 0:00:05]} 2. Nf3 {[%emt 0:00:09]} e6 {[%emt 0:00:06]} 3. d4 {[%emt 0:00:11]} cxd4 {[%emt 0:00:08]} 4. Nxd4 {[%emt 0:00:06]} a6 {[%emt 0:00:05]} 5. c4 {[%emt 0:00:37]} Nf6 {[%emt 0:02:04]} 6. Nc3 {[%emt 0:00:14]} Qc7 {[%emt 0:00:11]} 7. a3 {[%emt 0:00:24] The main line 7.a3 scores better than 7.Be2.} b6 {[%emt 0:01:12]} 8. Bd3 {[%emt 0:01:42]} Bb7 {[%emt 0:02:06] B41: Sicilian: Kan Variation: 5 c4.} 9. f4 {[%emt 0:01:25][%cal Bf2f4,Bf4f5][%mdl 32]} d6 {[%emt 0:05:28]} 10. f5 {[%emt 0:01:43]} Nc6 {[%emt 0:11:31] White is slightly better.} 11. Be3 {[%emt 0:00:22]} Nxd4 {[%emt 0:00:38]} 12. Bxd4 {[%emt 0:00:07]} Be7 {[%emt 0:00:07]} 13. O-O {[%emt 0:00:36]} O-O {[%emt 0:01:12]} 14. Qf3 {[%emt 0:00:24]} Nd7 {[%emt 0:29:42]} (14... Rae8 $14) 15. fxe6 $16 {[%emt 0:32:12]} fxe6 {[%emt 0:09:44]} 16. Qg4 {[%emt 0:03:43][%csl Gd4][%cal Rg4g7]} Bf6 $146 {[%emt 0:00:34]} (16... e5 17. Qe6+ Kh8 18. Qxe7 exd4 19. Nd5 Bxd5 20. exd5 Rac8 21. Qe4 g6 22. Qxd4+ Ne5 {½-½ Singh,S (2050)-Guru,P (1817) Wch U20 61st 2024 (8)}) 17. Qxe6+ {[%emt 0:02:17]} Kh8 {[%emt 0:00:20]} 18. Bxf6 {[%emt 0:06:04]} Nxf6 {[%emt 0:00:06]} 19. Qh3 {[%emt 0:15:09]} Rae8 {[%emt 0:08:58]} 20. Nd5 {[%emt 0:12:46]} (20. Rae1 $16) 20... Qc5+ $11 {[%emt 0:02:04]} 21. Kh1 {[%emt 0:00:40][%cal Oe4e5] And now e5! would win.} Bc8 {[%emt 0:10:57]} (21... Qd4 $11 {remains equal.}) 22. Qe3 $16 {[%emt 0:01:59]} Ng4 {[%emt 0:01:13]} 23. Qxc5 {[%emt 0:00:43]} bxc5 {[%emt 0:00:01]} 24. Kg1 {[%emt 0:01:42] Prevents Nf2.} a5 {[%emt 0:01:48]} 25. Nc7 {[%emt 0:09:19]} Rd8 {[%emt 0:03:57]} 26. Rxf8+ {[%emt 0:00:21]} Rxf8 {[%emt 0:00:01]} 27. Nb5 {[%emt 0:00:58]} Rd8 {[%emt 0:06:13]} 28. Rd1 {[%emt 0:02:41]} Ne5 {[%emt 0:00:34]} 29. Be2 {[%emt 0:00:18]} Nf7 {[%emt 0:00:16]} 30. Kf2 {[%emt 0:02:38]} g6 {[%emt 0:00:29] [#]} (30... Be6 $16 31. b3 Rd7) 31. Ke3 {[%emt 0:00:35]} (31. e5 $1 $18) 31... Kg7 {[%emt 0:00:06]} 32. Rf1 {[%emt 0:03:14]} Ne5 {[%emt 0:03:41]} 33. Kd2 {[%emt 0:00:25]} Bb7 {[%emt 0:00:26]} 34. Ke3 {[%emt 0:00:34]} (34. Nc3 $16) 34... Bc6 {[%emt 0:00:33]} (34... Bc8 $1 $11) 35. Rd1 {[%emt 0:00:41]} Nf7 {[%emt 0:00:01]} 36. Bf3 {[%emt 0:00:30]} Kf8 {[%emt 0:00:40]} 37. Rd2 {[%emt 0:00:33]} Ke7 {[%emt 0:00:14]} 38. Na7 {[%emt 0:00:31]} (38. a4 $14) 38... Bd7 $11 {[%emt 0:00:49]} 39. Nb5 {[%emt 0:00:33]} Rb8 {[%emt 0:00:45]} (39... Bc6 $11) 40. a4 $14 {[%emt 0:00:33]} Rd8 {[%emt 0:00:34]} 41. Bd1 {[%emt 0:00:24]} Bc6 {[%emt 0:00:32]} 42. b3 {[%emt 0:00:29]} Ne5 {[%emt 0:00:30]} 43. Rf2 {[%emt 0:00:21]} Bd7 {[%emt 0:00:38]} 44. h3 {[%emt 0:00:50]} Be6 {[%emt 0:00:30]} 45. Nc7 {[%emt 0:00:23]} Rc8 {[%emt 0:00:34]} 46. Nd5+ {[%emt 0:00:39]} Bxd5 {[%emt 0:00:13]} 47. exd5 {[%emt 0:00:11][%mdl 4096] Endgame KRB-KRN. White is a pawn up.} Rb8 {[%emt 0:00:27]} 48. Bc2 {[%emt 0:00:42]} Rc8 {[%emt 0:00:35]} 49. Rf4 {[%emt 0:00:15]} Rc7 {[%emt 0:00:39]} 50. h4 {[%emt 0:00:48]} (50. Kd2 $16) 50... h5 $11 {[%emt 0:00:39]} 51. Bd1 {[%emt 0:00:10]} Rb7 {[%emt 0:00:10]} 52. Rf1 {[%emt 0:00:47]} Rb8 {[%emt 0:00:11]} 53. Rf4 {[%emt 0:00:31]} Rb7 {[%emt 0:00:15]} 54. Ke4 {[%emt 0:00:33]} Rb6 {[%emt 0:00:43]} 55. Rf2 {[%emt 0:00:26]} Rb8 {[%emt 0:00:07]} 56. Rf1 {[%emt 0:00:32]} Rb7 {[%emt 0:01:10]} 57. Ke3 {[%emt 0:00:32]} Rb8 {[%emt 0:00:14]} 58. Rf4 {[%emt 0:00:11]} Rb7 $1 {[%emt 0:00:19]} 59. Kd2 {[%emt 0:00:09]} Rb8 {[%emt 0:00:19]} 60. g3 {[%emt 0:00:58]} (60. Bc2 $16) 60... Rb7 {[%emt 0:01:18]} 61. Kc3 {[%emt 0:00:14]} Rb8 {[%emt 0:00:14]} 62. Re4 {[%emt 0:01:00]} Rf8 {[%emt 0:00:31]} 63. Rf4 {[%emt 0:00:23]} Rb8 {[%emt 0:00:44]} 64. Be2 {[%emt 0:00:19]} Rg8 {[%emt 0:00:25]} 65. Re4 {[%emt 0:00:29]} Rf8 {[%emt 0:00:15]} 66. Rf4 {[%emt 0:00:29]} Rg8 {[%emt 0:00:59]} 67. Kd2 {[%emt 0:00:34]} Rb8 {[%emt 0:00:20]} 68. Bd1 {[%emt 0:00:10]} Rg8 {[%emt 0:00:17]} 69. Kc2 {[%emt 0:00:59]} Rb8 {[%emt 0:00:33]} 70. Kd2 {[%emt 0:00:18]} Rg8 {[%emt 0:00:11]} 71. Re4 {[%emt 0:00:43]} Rf8 {[%emt 0:00:30]} 72. Ke2 {[%emt 0:00:19]} Rb8 {[%emt 0:01:10]} 73. Kf2 {[%emt 0:00:24]} Rf8+ {[%emt 0:00:07]} 74. Kg2 {[%emt 0:00:28]} Rb8 {[%emt 0:00:07]} 75. Re3 {[%emt 0:00:52]} Kf6 {[%emt 0:00:44]} 76. Kh3 {[%emt 0:00:26]} Kf5 {[%emt 0:00:56]} 77. Bc2+ {[%emt 0:00:31]} Kf6 {[%emt 0:00:02]} 78. Re4 {[%emt 0:00:21]} Re8 {[%emt 0:01:01]} 79. Bd1 {[%emt 0:00:44]} Rb8 {[%emt 0:00:14]} 80. Re2 {[%emt 0:00:25]} Rb7 {[%emt 0:00:42]} 81. Re3 {[%emt 0:00:19]} Rb8 {[%emt 0:00:09]} 82. g4 {[%emt 0:00:17]} hxg4+ {[%emt 0:00:13]} 83. Bxg4 {[%emt 0:00:11]} Ke7 {[%emt 0:00:36]} 84. Kg3 {[%emt 0:01:10]} Rf8 {[%emt 0:00:13]} 85. Re1 {[%emt 0:00:25]} Rb8 {[%emt 0:00:56]} 86. Bd1 {[%emt 0:00:06]} Kf6 {[%emt 0:00:11]} 87. Rf1+ {[%emt 0:00:21]} Kg7 {[%emt 0:00:33]} 88. Rh1 {[%emt 0:01:01]} Rf8 {[%emt 0:01:13]} 89. h5 {[%emt 0:00:39]} gxh5 {[%emt 0:00:28]} 90. Bxh5 {[%emt 0:00:18]} Rf6 {[%emt 0:00:40]} 91. Bd1 {[%emt 0:00:37]} Rf8 {[%emt 0:00:07]} 92. Rg1 {[%emt 0:00:26]} Rf6 {[%emt 0:00:24]} 93. Rh1 {[%emt 0:00:33]} Rf8 {[%emt 0:00:12]} 94. Kg2 {[%emt 0:00:15]} Rf4 {[%emt 0:00:41]} 95. Bc2 {[%emt 0:00:44]} Rd4 {[%emt 0:00:38]} 96. Kg3 {[%emt 0:00:43]} Rd2 {[%emt 0:00:43]} 97. Rh7+ {[%emt 0:00:27]} Kf6 {[%emt 0:00:13]} 98. Be4 {[%emt 0:00:23]} Rb2 {[%emt 0:00:29]} 99. Kf4 {[%emt 0:00:11]} Rxb3 {[%emt 0:00:44][%cal Oe5f7]} 100. Rh6+ {[%emt 0:00:06]} Ke7 {[%emt 0:00:26]} 101. Rh7+ {[%emt 0:00:55]} Kf6 {[%emt 0:00:13][%cal Oe5f7]} 102. Rh6+ {[%emt 0:00:13]} Ke7 {[%emt 0:00:01]} 103. Rh7+ {[%emt 0:00:07]} Kd8 {[%emt 0:00:26]} 104. Bf5 {[%emt 0:01:04]} Rf3+ {[%emt 0:01:22]} 105. Kg5 {[%emt 0:00:23]} Nxc4 {[%emt 0:00:27]} 106. Ra7 {[%emt 0:00:52]} (106. Rh8+ $11 Kc7 107. Rh7+ Kb8 (107... Kb6 108. Bc8 $11) 108. Rh8+ Ka7 109. Rh7+ Kb8) 106... Ra3 {[%emt 0:00:41]} (106... Nb6 $15 107. Rxa5 Kc7 (107... Nxd5 108. Ra7 $15) 108. Ra7+ Kb8) 107. Rd7+ {[%emt 0:00:40]} Ke8 {[%emt 0:00:06]} 108. Rb7 {[%emt 0:00:27]} Rf3 {[%emt 0:00:43]} (108... Rxa4 $2 109. Bd7+ Kd8 110. Bxa4 $18) 109. Rb8+ {[%emt 0:00:38]} Ke7 {[%emt 0:00:09]} 110. Rb7+ {[%emt 0:00:05]} Kd8 {[%emt 0:00:36]} (110... Ke8 $11) 111. Ra7 $17 {[%emt 0:00:50]} Re3 {[%emt 0:00:50]} (111... Ne5 $17 112. Rxa5 Kc7) 112. Kf6 {[%emt 0:00:39]} (112. Rd7+ $11 Ke8 113. Kf6) 112... Nb6 {[%emt 0:00:22][%csl LRa4,LRd5]} 113. Be6 {[%emt 0:00:07]} (113. Kf7 $17 {was called for.}) 113... Rf3+ {[%emt 0:00:28]} (113... Nxa4 114. Rd7+ Kc8 115. Rxd6+ Kb7 116. Rc6 $16) 114. Kg6 {[%emt 0:00:33]} Ra3 {[%emt 0:00:51]} (114... Nxa4 115. Rd7+ Ke8 116. Rxd6 $11) ({Better is} 114... c4 $19 {...c3 would now be deadly.} 115. Rxa5 Rd3) 115. Rb7 $15 {[%emt 0:00:23]} Rb3 {[%emt 0:00:16]} (115... Nxa4 116. Rd7+ Kc8 117. Rxd6+ Kb7 118. Rc6 $11) 116. Ra7 $2 {[%emt 0:00:36] Now White is beyond hope.} ({White should try} 116. Bf5 $15) 116... Rb4 $19 {[%emt 0:00:30]} (116... Nxa4 117. Rd7+ Kc8 118. Rxd6+ Kb7 119. Rd7+ Ka6 120. Rc7 $15) 117. Rxa5 $2 {[%emt 0:00:43]} (117. Bf5) 117... Rxa4 {[%emt 0:00:07]} ({And not} 117... Nxa4 118. Ra8+ Kc7 119. Kf6 $11) 118. Rb5 {[%emt 0:00:33]} ({Of course not} 118. Rxa4 Nxa4 119. Kf5 Kc7 $19) 118... Kc7 {[%emt 0:00:09]} 119. Kf7 {[%emt 0:00:34]} Rd4 {[%emt 0:00:28]} 120. Ra5 {[%emt 0:00:24]} Nxd5 {[%emt 0:00:16]} 121. Ra8 {[%emt 0:00:34]} Rf4+ {[%emt 0:00:00]} 122. Ke8 {[%emt 0:00:00]} (122. Kg7 $142 Kc6 123. Ra6+ Nb6 124. Bf7) 122... Nb6 {[%emt 0:00:47]} 123. Ra7+ {[%emt 0:00:08]} Kc6 {[%emt 0:00:12]} 124. Kd8 {[%emt 0:00:52]} Rf8+ {[%emt 0:01:35]} 125. Ke7 {[%emt 0:00:01]} Rh8 {[%emt 0:00:22]} 126. Ra6 {[%emt 0:00:32]} Ra8 {[%emt 0:01:20]} 127. Bd7+ {[%emt 0:01:10] [#]} Kc7 $1 {[%emt 0:00:02] Black mates.} 128. Rxa8 {[%emt 0:00:14]} Nxa8 {[%emt 0:00:01] KB-KN. Black is two pawns up.} 129. Ke6 {[%emt 0:00:24]} Nb6 {[%emt 0:00:35]} 130. Bb5 {[%emt 0:00:22]} c4 {[%emt 0:00:51]} 131. Kf5 {[%emt 0:00:11]} c3 {[%emt 0:00:52]} 132. Bd3 {[%emt 0:00:08]} Nd5 {[%emt 0:00:26]} 133. Ke4 {[%emt 0:00:03]} Nb4 {[%emt 0:00:06]} 134. Ke3 {[%emt 0:00:03]} Kc6 {[%emt 0:00:24]} 135. Bh7 {[%emt 0:01:30]} Kc5 {[%emt 0:00:09]} 136. Ke2 {[%emt 0:00:47]} d5 {[%emt 0:00:21]} 137. Kd1 {[%emt 0:00:30]} Kc4 {[%emt 0:00:40]} 138. Kc1 {[%emt 0:01:01]} d4 {[%emt 0:00:19]} 139. Bg8+ {[%emt 0:00:12]} Kd3 {[%emt 0:00:05]} 140. Bf7 {[%emt 0:00:39]} Ke3 {[%emt 0:00:06]} 141. Be6 {[%emt 0:00:28]} d3 {[%emt 0:00:28]} 142. Bb3 {[%emt 0:00:39]} d2+ {[%emt 0:00:13]} 143. Kd1 {[%emt 0:00:08] [#]} c2+ $1 {[%emt 0:00:09][%mdl 32768] Weighted Error Value: White=0.15 (very precise) /Black=0.14 (very precise)  Loss on time!?  Loses game:     	White=1     	---        Mistake:       	White=11    	Black=9      Inaccurate:     	White=9     	Black=10     OK:         	White=39    	Black=48     Best:        	White=4     	Black=13     Strong:       	---       	Black=1} 0-1